fUST/lending_fUST_20250513
["ID","MTS","AMOUNT","RATE_DAILY","PERIOD"]
[360847878,1747071032561,-500.0,0.00013849,2]
[360847879,1747071032571,-520.61773987,0.00013849,2]
[360847880,1747071032581,-500.0,0.00013849,2]
[360847881,1747071032591,-500.0,0.00013849,2]
[360847882,1747071032601,-39947.47869321,0.0001385,2]
[360847883,1747071032610,-500.0,0.00013857,2]
[360847884,1747071032620,-24900.0,0.00013858,2]
[360847885,1747071032629,-9604.6977768,0.00013918,2]
[360847886,1747071032639,-500.0,0.00014131,2]
[360847887,1747071032648,-151.0,0.00014152,2]
[360847888,1747071032657,-207.4,0.00014152,2]
[360847889,1747071032667,-151.0,0.00014207,2]
[360847890,1747071032676,-198.0,0.00014262,2]
[360847891,1747071032686,-176.363128,0.00014323,2]
[360847892,1747071032695,-151.755836,0.00014323,2]
[360847893,1747071032705,-500.0,0.00014405,2]
[360847894,1747071032715,-5568.14242699,0.00014533,2]
[360847895,1747071032724,-500.0,0.00014679,2]
[360847896,1747071032734,-5940.07048213,0.00014698,2]
[360847897,1747071032745,-2428.14621921,0.00014698,2]
[360847898,1747071032754,-151.0,0.000147,2]
[360847899,1747071032764,-151.0,0.000147,2]
[360847900,1747071032774,-151.0,0.000147,2]
[360847901,1747071032783,-5940.07048213,0.00014723,2]
[360847902,1747071032793,-5940.07048213,0.00014748,2]
[360847903,1747071032803,-72893.21469,0.00014749,2]
[360847904,1747071032813,-185.25775236,0.00014749,2]
[360847905,1747071032825,-173.266,0.00014749,2]
[360847906,1747071032836,-5940.07048213,0.00014773,2]
[360847907,1747071032846,-652.49990956,0.0001479,2]
[360847908,1747071032856,-2238.0,0.00014798,2]
[360847909,1747071032865,-706.0,0.00014798,2]
[360847910,1747071032876,-404.0,0.00014798,2]
[360847911,1747071032886,-5940.07048213,0.00014798,2]
[360847912,1747071032896,-546.0,0.00014798,2]
[360847913,1747071032907,-151.0,0.000148,2]
[360847914,1747071032916,-151.0,0.000148,2]
[360847915,1747071032926,-151.0,0.000148,2]
[360847916,1747071032936,-151.0,0.000148,2]
[360847917,1747071032946,-151.0,0.000148,2]
[360847918,1747071032959,-151.0,0.000148,2]
[360847919,1747071032969,-1322.9911146,0.00014823,2]
[360847920,1747071032979,-500.0,0.00014873,2]
[360847921,1747071032989,-178.36608331,0.00014873,2]
[360847922,1747071033159,-500.0,0.00014873,2]
[360847923,1747071033169,-501.28201925,0.00014873,2]
[360847924,1747071033179,-500.0,0.00014873,2]
[360847925,1747071033194,-503.44736264,0.00014873,2]
[360847926,1747071033206,-314.75298892,0.00014873,2]
[360847927,1747071033218,-500.0,0.00014873,2]
[360847928,1747071033228,-500.78546831,0.00014873,2]
[360847929,1747071033238,-500.0,0.00014873,2]
[360847930,1747071033248,-500.0,0.00014873,2]
[360847931,1747071033258,-500.0,0.00014873,2]
[360847932,1747071033269,-500.0,0.00014873,2]
[360847933,1747071033280,-500.0,0.00014873,2]
[360847934,1747071033290,-500.0,0.00014873,2]
[360847935,1747071033300,-501.70788395,0.00014873,2]
[360847936,1747071033310,-500.0,0.00014873,2]
[360847937,1747071033320,-501.61457151,0.00014873,2]
[360847938,1747071033329,-310.08691503,0.00014873,2]
[360847939,1747071033339,-500.0,0.00014873,2]
[360847940,1747071033349,-621.22040421,0.00014873,2]
[360847941,1747071033359,-213.03895421,0.00014873,2]
[360847942,1747071033368,-500.0,0.00014873,2]
[360847943,1747071033378,-500.0,0.00014873,2]
[360847944,1747071033388,-500.0,0.00014873,2]
[360847945,1747071033397,-500.0,0.00014873,2]
[360847946,1747071033407,-500.0,0.00014873,2]
[360847947,1747071033418,-500.0,0.00014873,2]
[360847948,1747071033427,-425.96008127,0.00014873,2]
[360847949,1747071033437,-500.0,0.00014873,2]
[360847950,1747071033446,-500.0,0.00014873,2]
[360847951,1747071033456,-500.0,0.00014873,2]
[360847952,1747071033466,-500.0,0.00014873,2]
[360847953,1747071033477,-500.0,0.00014873,2]
[360847954,1747071033487,-500.0,0.00014873,2]
[360847955,1747071033497,-500.0,0.00014873,2]
[360847956,1747071033507,-500.0,0.00014873,2]
[360847957,1747071033517,-620.19431742,0.00014873,2]
[360847958,1747071033526,-500.0,0.00014873,2]
[360847959,1747071033536,-270.23477801,0.00014873,2]
[360847960,1747071033546,-104971.21937474,0.00014898,3]
[360847961,1747071033555,-212.17074216,0.00014898,3]
[360847962,1747071033565,-347049.24655236,0.00014898,2]
[360847971,1747071037666,-13113.265326,0.00014898,2]
[360847973,1747071037678,-2543.94246684,0.00014898,2]
[360847977,1747071037724,-1295.50178575,0.00014898,2]
[360847978,1747071037736,-9176.79676762,0.00014898,2]
[360848007,1747071042979,-292.39287559,0.00013818,2]
[360848010,1747071042989,-500.0,0.00013849,2]
[360848011,1747071042999,-514.23998174,0.00014123,2]
[360848012,1747071043009,-90731.71060428,0.00014898,2]
[360848013,1747071043018,-395282.57735476,0.00014898,2]
[360848014,1747071043086,-517.2099998,0.00014898,2]
[360848020,1747071045905,-4541.942673,0.00014898,2]
[360848021,1747071045917,-10102.61318798,0.00014898,2]
[360848022,1747071045928,-3173.313704,0.00014898,2]
[360848027,1747071091623,-154.10567246,0.00013848,2]
[360848028,1747071780821,4300.0,0.0002,120]
[360848029,1747071804125,-181.19137932,0.00013348,2]
[360848030,1747071813568,-152.0,0.00012047,2]
[360848031,1747071828548,-235.18699587,0.00010328,2]
[360848032,1747071838116,-179.10569371,9.812e-05,2]
[360848033,1747071838136,-243.89430629,0.00010328,2]
[360848034,1747071843579,-20.91869784,0.00010328,2]
[360848035,1747071843604,-329.92664359,0.00010872,2]
[360848036,1747071858522,-325.5455307,0.00010225,2]
[360848037,1747071873595,-160.73962839,0.00010225,2]
[360848038,1747071888523,-313.44041388,0.00010225,2]
[360848040,1747071903564,-196.84766602,0.00010225,2]
[360848041,1747071904995,-2120.0,0.00010225,2]
[360848042,1747071918547,-25.24716171,0.00010225,2]
[360848043,1747071918570,-125.7545635,0.00010872,2]
[360848044,1747071933577,-44.31879291,0.00010872,2]
[360848045,1747071933600,-172.66059126,0.00011444,2]
[360848046,1747071948526,-164.17475853,0.0001133,2]
[360848047,1747071963489,-52.80462564,0.0001133,2]
[360848048,1747071963512,-246.60609934,0.00011444,2]
[360848049,1747071979299,-80.7333094,0.00011444,2]
[360848050,1747071979322,-73.60421584,0.00012047,2]
[360848051,1747071979951,150.0,8.02e-05,2]
[360848052,1747071994081,-154.33752524,0.00011926,2]
[360848053,1747071994105,-155.48722296,0.00012047,2]
[360848054,1747072009847,-259.00055571,0.00010225,2]
[360848055,1747072023979,-426.05369454,0.00010225,2]
[360848056,1747072039056,-173.94630546,0.00010225,2]
[360848057,1747072052107,-10488.88006224,0.00010225,2]
[360848058,1747072054197,-179.23776153,0.00010225,2]
[360848059,1747072057845,10000.0,0.00012,10]
[360848060,1747072069644,-323.76223847,0.00010225,2]
[360848061,1747072083507,-246.59637813,0.00010225,2]
[360848062,1747072090966,10000.0,8.02e-05,2]
[360848063,1747072098559,-273.98579963,0.00010225,2]
[360848067,1747072114591,-202.98257043,0.00010225,2]
[360848070,1747072128553,-206.21698277,0.00010225,2]
[360848071,1747072143525,-300.0,0.00010225,2]
[360848074,1747072152172,-254.51867742,0.00010225,2]
[360848076,1747072160177,-303.41701588,0.00010225,2]
[360848077,1747072161117,-1003.1883044,0.00010225,2]
[360848078,1747072166123,-244.21365339,0.00010225,2]
[360848079,1747072166143,-200.30416869,0.00011947,2]
[360848080,1747072166174,-118.9085612,0.00012047,2]
[360848081,1747072166194,-430.46094404,0.00012681,2]
[360848084,1747072176914,10000.0,8.02e-05,2]
[360848110,1747072231962,-69.53905596,0.00012681,2]
[360848113,1747072231973,-174.483466,0.00012938,2]
[360848115,1747072231983,-318.80862068,0.00013348,2]
[360848117,1747072231993,-326.194113,0.00013699,2]
[360848119,1747072232003,-151.0,0.00013829,2]
[360848120,1747072232012,-255.0,0.00013836,2]
[360848123,1747072232021,-1200.0,0.00013836,2]
[360848125,1747072232031,-187.21441397,0.00013837,2]
[360848127,1747072232041,-291.74411362,0.00013837,2]
[360848129,1747072232050,-445.69447153,0.00013837,2]
[360848131,1747072232062,-40.88785316,0.00013837,2]
[360848133,1747072232071,-500.0,0.00013837,2]
[360848135,1747072232082,-404.11214684,0.00013837,2]
[360848501,1747072238055,-95.88785316,0.00013837,2]
[360848502,1747072238066,-272.8544628,0.00013837,2]
[360848503,1747072238076,-615.0,0.00013837,2]
[360848504,1747072238085,-168.70590128,0.00013837,2]
[360848505,1747072238094,-161.90934339,0.00013837,2]
[360848506,1747072238104,-162.13388725,0.00013837,2]
[360848507,1747072238114,-619.94290558,0.00013837,2]
[360848508,1747072238124,-500.0,0.00013837,2]
[360848509,1747072238133,-3122.85109467,0.00013837,2]
[360848510,1747072238145,-286.82716009,0.00013837,2]
[360848511,1747072238155,-3937.99141441,0.00013838,2]
[360848532,1747072240540,-0.00726577,0.00013838,2]
[360848549,1747072246032,-20962.00131982,0.00013838,2]
[360848550,1747072246042,-500.0,0.00014051,2]
[360848551,1747072246052,-155.0,0.00014152,2]
[360848552,1747072246061,-207.4,0.00014152,2]
[360848553,1747072246071,-176.363129,0.000144,3]
[360848554,1747072246080,-151.755837,0.000144,3]
[360848555,1747072246090,-269.0212561,0.00014452,2]
[360848556,1747072246099,-173.266,0.00014729,2]
[360848557,1747072246108,-194.92858372,0.00014771,2]
[360848558,1747072246117,-3000.0,0.0001478,2]
[360848559,1747072246127,-194.92858372,0.00014785,2]
[360848560,1747072246137,-500.0,0.0001479,2]
[360848561,1747072246146,-546.0,0.00014798,2]
[360848562,1747072246156,-706.0,0.00014798,2]
[360848563,1747072246166,-2238.0,0.00014798,2]
[360848564,1747072246175,-234.808,0.00014798,2]
[360848565,1747072246184,-194.92858372,0.00014798,2]
[360848566,1747072246194,-923.30007847,0.000148,2]
[360848567,1747072246204,-1528.8513761,0.00014823,2]
[360848568,1747072246213,-500.0,0.0001487,2]
[360848569,1747072246222,-500.0,0.0001487,2]
[360848570,1747072246232,-500.0,0.0001487,2]
[360848571,1747072246242,-500.0,0.0001487,2]
[360848572,1747072246251,-380.3533689,0.0001487,2]
[360848573,1747072246261,-500.0,0.0001487,2]
[360848574,1747072246270,-574.18330216,0.0001487,2]
[360848575,1747072246280,-414.43241791,0.0001487,2]
[360848576,1747072246289,-500.0,0.0001487,2]
[360848577,1747072246299,-500.0,0.00014873,2]
[360848578,1747072246308,-444.54586587,0.00014873,2]
[360848579,1747072246317,-500.0,0.00014873,2]
[360848580,1747072246326,-500.0,0.00014873,2]
[360848581,1747072246336,-500.0,0.00014873,2]
[360848582,1747072246346,-500.0,0.00014873,2]
[360848583,1747072246355,-500.0,0.00014873,2]
[360848584,1747072246365,-500.0,0.00014873,2]
[360848585,1747072246374,-500.0,0.00014873,2]
[360848586,1747072246385,-500.0,0.00014873,2]
[360848587,1747072246394,-500.0,0.00014873,2]
[360848588,1747072246403,-500.0,0.00014873,2]
[360848589,1747072246413,-500.0,0.00014873,2]
[360848590,1747072246422,-500.0,0.00014873,2]
[360848591,1747072246432,-500.0,0.00014873,2]
[360848592,1747072246442,-500.0,0.00014873,2]
[360848593,1747072246453,-500.0,0.00014873,2]
[360848594,1747072246463,-500.0,0.00014873,2]
[360848595,1747072246472,-500.0,0.00014873,2]
[360848596,1747072246482,-500.0,0.00014873,2]
[360848597,1747072246492,-500.0,0.00014873,2]
[360848598,1747072246504,-162614.8427711,0.00014898,2]
[360848599,1747072339067,-239.20936491,0.00011847,2]
[360848600,1747072353556,-299.22165101,0.00011847,2]
[360848601,1747072369094,-153.0109088,0.00011847,2]
[360848602,1747072383972,-229.90412252,0.00011847,2]
[360848603,1747072399252,-78.65395276,0.00011847,2]
[360848668,1747073250109,-200.30416869,0.00012757,2]
[360848669,1747073250130,-3843.27646161,0.00012857,2]
[360848670,1747073351224,-229.9041225,0.00012832,2]
[360848671,1747073351426,-586.0323373,0.00012851,2]
[360848672,1747073351457,-463.9435402,0.00012857,2]
[360848676,1747073364119,-671.66438419,0.00012857,2]
[360848677,1747073364141,-1288.33561581,0.00012859,2]
[360848740,1747073432574,-1200.0,0.00012822,2]
[360848741,1747073432584,-300.0,0.00012822,2]
[360848742,1747073432594,-24900.0,0.00012823,2]
[360848743,1747073432604,-58.76431889,0.00012859,2]
[360848744,1747073432614,-3393.5498378,0.00013512,2]
[360848745,1747073432625,-309.884407,0.00013699,2]
[360848746,1747073432635,-463.5854835,0.00013845,2]
[360848747,1747073432644,-300.0,0.00013849,2]
[360848748,1747073432655,-300.0,0.00013849,2]
[360848749,1747073432666,-300.0,0.00013849,2]
[360848750,1747073432675,-151.0,0.00013849,2]
[360848751,1747073432685,-23785.48729056,0.0001385,2]
[360848752,1747073432698,-15890.99935836,0.0001385,2]
[360848753,1747073432708,-511.11932674,0.00013851,2]
[360848755,1747073432718,-500.0,0.00013851,2]
[360848756,1747073432728,-500.0,0.00013851,2]
[360848758,1747073432737,-500.0,0.00013851,2]
[360848760,1747073432747,-500.0,0.00013851,2]
[360848762,1747073432757,-500.0,0.00013851,2]
[360848764,1747073432766,-500.0,0.00013851,2]
[360848765,1747073432776,-439.75936218,0.00013851,2]
[360848766,1747073432789,-500.0,0.00013851,2]
[360848768,1747073432799,-500.0,0.00013851,2]
[360848770,1747073432812,-500.0,0.00013851,2]
[360848772,1747073432822,-500.0,0.00013851,2]
[360848774,1747073432832,-500.0,0.00013851,2]
[360848776,1747073432842,-500.0,0.00013851,2]
[360848779,1747073432851,-500.0,0.00013851,2]
[360848781,1747073432861,-500.0,0.00013851,2]
[360848783,1747073432871,-500.0,0.00013851,2]
[360848785,1747073432881,-500.0,0.00013851,2]
[360848787,1747073432890,-500.0,0.00013851,2]
[360848789,1747073432902,-500.0,0.00013851,2]
[360848791,1747073432912,-500.0,0.00013851,2]
[360848793,1747073432923,-500.0,0.00013851,2]
[360848795,1747073432932,-500.0,0.00013851,2]
[360848797,1747073432942,-500.0,0.00013851,2]
[360848799,1747073432953,-500.0,0.00013851,2]
[360848801,1747073432963,-500.0,0.00013851,2]
[360848803,1747073432973,-500.0,0.00013851,2]
[360848805,1747073432985,-227.37264362,0.00013851,2]
[360848807,1747073432995,-596.62704178,0.00013851,2]
[360848809,1747073433005,-500.0,0.00013851,2]
[360848812,1747073433015,-500.0,0.00013851,2]
[360848814,1747073433026,-500.0,0.00013851,2]
[360848816,1747073433036,-500.0,0.00013851,2]
[360848818,1747073433046,-500.0,0.00013851,2]
[360848820,1747073433058,-647.54252902,0.00013851,2]
[360848822,1747073433069,-500.0,0.00013851,2]
[360848824,1747073433079,-500.0,0.00013851,2]
[360848826,1747073433090,-500.0,0.00013851,2]
[360848828,1747073433100,-500.0,0.00013851,2]
[360848830,1747073433110,-500.0,0.00013851,2]
[360848832,1747073433120,-500.0,0.00013851,2]
[360848834,1747073433131,-500.0,0.00013851,2]
[360848836,1747073433141,-499.99999999,0.00013851,2]
[360848838,1747073433151,-170.66219384,0.00013851,2]
[360848840,1747073433163,-500.0,0.00013851,2]
[360848842,1747073433174,-500.0,0.00013851,2]
[360848844,1747073433183,-500.0,0.00013851,2]
[360848846,1747073433193,-500.0,0.00013851,2]
[360848848,1747073433204,-500.0,0.00013851,2]
[360848850,1747073433214,-500.0,0.00013851,2]
[360848853,1747073433224,-500.0,0.00013851,2]
[360848855,1747073433234,-500.0,0.00013851,2]
[360848857,1747073433247,-500.0,0.00013851,2]
[360848859,1747073433257,-500.0,0.00013851,2]
[360848861,1747073433267,-467.17191723,0.00013851,2]
[360848863,1747073433278,-500.0,0.00013851,2]
[360848865,1747073433288,-500.0,0.00013851,2]
[360848867,1747073433298,-500.0,0.00013851,2]
[360848869,1747073433312,-500.0,0.00013851,2]
[360848871,1747073433323,-500.0,0.00013851,2]
[360848873,1747073433334,-500.0,0.00013851,2]
[360848875,1747073433344,-500.0,0.00013851,2]
[360848877,1747073433355,-500.0,0.00013851,2]
[360848879,1747073433365,-500.0,0.00013851,2]
[360848881,1747073433376,-500.0,0.00013851,2]
[360848883,1747073433386,-445.99403207,0.00013851,2]
[360848885,1747073433397,-500.0,0.00013851,2]
[360848887,1747073433407,-500.0,0.00013851,2]
[360848890,1747073433417,-500.0,0.00013851,2]
[360848892,1747073433426,-500.0,0.00013851,2]
[360848894,1747073433436,-500.0,0.00013851,2]
[360848896,1747073433446,-500.0,0.00013851,2]
[360848898,1747073433457,-500.0,0.00013851,2]
[360848900,1747073433467,-500.0,0.00013851,2]
[360848902,1747073433478,-500.0,0.00013851,2]
[360848904,1747073433489,-500.0,0.00013851,2]
[360848906,1747073433499,-500.0,0.00013851,2]
[360848908,1747073433511,-500.0,0.00013851,2]
[360848910,1747073433521,-500.0,0.00013851,2]
[360848912,1747073433531,-500.0,0.00013851,2]
[360848914,1747073433541,-500.0,0.00013851,2]
[360848916,1747073433551,-500.0,0.00013851,2]
[360848918,1747073433566,-500.0,0.00013851,2]
[360848920,1747073433576,-500.0,0.00013851,2]
[360848922,1747073433586,-500.0,0.00013851,2]
[360848924,1747073433596,-500.0,0.00013851,2]
[360848926,1747073433606,-455.0,0.00013851,2]
[360848928,1747073433617,-500.0,0.00013851,2]
[360848930,1747073433628,-500.0,0.00013851,2]
[360848932,1747073433638,-500.0,0.00013851,2]
[360848934,1747073433648,-500.0,0.00013851,2]
[360848936,1747073433659,-500.0,0.00013851,2]
[360848938,1747073433669,-500.0,0.00013851,2]
[360848940,1747073433680,-500.0,0.00013851,2]
[360848942,1747073433691,-608.36196602,0.00013851,2]
[360848944,1747073433701,-500.0,0.00013851,2]
[360848947,1747073433712,-500.0,0.00013851,2]
[360848949,1747073433723,-500.0,0.00013851,2]
[360848951,1747073433734,-500.0,0.00013851,2]
[360848953,1747073433744,-500.0,0.00013851,2]
[360848955,1747073433756,-500.0,0.00013851,2]
[360848957,1747073433766,-500.0,0.00013851,2]
[360848959,1747073433776,-500.0,0.00013851,2]
[360848961,1747073433786,-500.0,0.00013851,2]
[360848963,1747073433796,-500.0,0.00013851,2]
[360848965,1747073433807,-500.0,0.00013851,2]
[360848967,1747073433817,-500.0,0.00013851,2]
[360848969,1747073433828,-500.0,0.00013851,2]
[360848971,1747073433839,-500.0,0.00013851,2]
[360848973,1747073433849,-500.0,0.00013851,2]
[360848975,1747073433859,-420.0,0.00014064,2]
[360848977,1747073433870,-1680.0,0.00014104,2]
[360848979,1747073433880,-207.4,0.00014152,2]
[360848981,1747073433892,-600.0,0.00014302,2]
[360848983,1747073433904,-600.0,0.00014451,2]
[360848985,1747073433916,-600.0,0.000146,2]
[360848987,1747073433926,-173.267,0.00014606,2]
[360848989,1747073433937,-153.0,0.000147,2]
[360848991,1747073433947,-1131.06132324,0.00014749,2]
[360848993,1747073433957,-3000.0,0.0001478,2]
[360848995,1747073433967,-150.0,0.00014798,2]
[360848997,1747073433978,-546.0,0.00014798,2]
[360848999,1747073433988,-2220.99,0.00014798,2]
[360849001,1747073433999,-706.0,0.00014798,2]
[360849003,1747073434010,-404.0,0.00014798,2]
[360849005,1747073434020,-501.04231144,0.00014798,2]
[360849007,1747073434031,-1223.0811009,0.00014823,2]
[360849009,1747073434041,-500.0,0.00014873,2]
[360849012,1747073434051,-500.0,0.00014873,2]
[360849013,1747073434065,-500.0,0.00014873,2]
[360849015,1747073434075,-500.0,0.00014873,2]
[360849017,1747073434086,-500.0,0.00014873,2]
[360849019,1747073434096,-500.0,0.00014873,2]
[360849021,1747073434105,-214.75058005,0.00014873,2]
[360849023,1747073434115,-500.0,0.00014873,2]
[360849025,1747073434125,-500.0,0.00014873,2]
[360849027,1747073434135,-500.0,0.00014873,2]
[360849029,1747073434145,-500.0,0.00014873,2]
[360849032,1747073434154,-500.0,0.00014873,2]
[360849034,1747073434166,-500.0,0.00014873,2]
[360849036,1747073434175,-500.0,0.00014873,2]
[360849038,1747073434186,-500.0,0.00014873,2]
[360849040,1747073434195,-500.0,0.00014873,2]
[360849042,1747073434205,-500.0,0.00014873,2]
[360849044,1747073434215,-251.60475038,0.00014897,2]
[360849046,1747073434225,-151.488838,0.00014897,5]
[360849048,1747073434236,-52485.61156776,0.00014898,3]
[360849050,1747073434247,-152451.7321399,0.00014898,2]
[360849052,1747073434257,-212.17074216,0.00014898,3]
[360849054,1747073434268,-562956.1892962,0.00014898,2]
[360849056,1747073434284,-510.9,0.00014898,2]
[360849059,1747073434297,-512.095042,0.00014898,2]
[360849455,1747073438463,-20442.12867351,0.00014898,2]
[360849456,1747073438521,-5126.14076869,0.00014898,2]
[360849457,1747073438575,-4058.95461891,0.00014898,2]
[360849458,1747073438587,-3032.31407508,0.00014898,2]
[360849459,1747073438599,-8232.6481977,0.00014898,2]
[360849460,1747073438610,-673.15488816,0.00014898,2]
[360850136,1747073446230,-3295.64541915,0.00014798,2]
[360850137,1747073446241,-16423.39708329,0.00014898,2]
[360850138,1747073446253,-3507.541166,0.00014898,2]
[360850139,1747073446338,-297.21359,0.00014898,2]
[360850493,1747074429178,-2775.4349348,0.00013797,2]
[360850494,1747074429204,-226.5882376,0.00013864,2]
[360850495,1747074429225,-206.6642364,0.00013952,2]
[360850496,1747074429248,-207.4,0.00014689,2]
[360850497,1747074429271,-250.0,0.00014697,2]
[360850498,1747074429295,-180.0,0.00014697,2]
[360850499,1747074429317,-300.0,0.00014697,2]
[360850500,1747074429339,-3084.70480118,0.00014698,2]
[360850589,1747074632465,-1000.00000001,0.00013697,2]
[360850592,1747074632474,-303.50367,0.00013699,2]
[360850593,1747074632485,-300.0,0.00013795,2]
[360850595,1747074632498,-300.0,0.00013795,2]
[360850597,1747074632507,-24900.0,0.00013796,2]
[360850599,1747074632518,-5473.7009715,0.00014698,2]
[360850601,1747074632528,-25010.07069917,0.00014795,2]
[360850604,1747074632540,-3687.60221849,0.00014795,2]
[360850607,1747074632560,-575.47336553,0.00014795,2]
[360850609,1747074632572,-20726.85371681,0.00014795,2]
[360850610,1747074632582,-191.93029374,0.00014795,2]
[360850612,1747074632591,-500.0,0.00014795,2]
[360850615,1747074632601,-500.0,0.00014795,2]
[360850617,1747074632610,-500.0,0.00014795,2]
[360850619,1747074632620,-500.0,0.00014795,2]
[360850621,1747074632630,-500.0,0.00014795,2]
[360850623,1747074632640,-500.0,0.00014795,2]
[360850625,1747074632649,-500.0,0.00014795,2]
[360850627,1747074632659,-500.0,0.00014795,2]
[360850629,1747074632668,-500.0,0.00014795,2]
[360850631,1747074632679,-500.0,0.00014795,2]
[360850633,1747074632689,-500.0,0.00014795,2]
[360850635,1747074632699,-359.93234707,0.00014795,2]
[360850637,1747074632709,-500.0,0.00014795,2]
[360850639,1747074632720,-500.0,0.00014795,2]
[360850641,1747074632731,-500.0,0.00014795,2]
[360850643,1747074632740,-502.35111085,0.00014795,2]
[360850645,1747074632756,-500.0,0.00014795,2]
[360850647,1747074632766,-500.0,0.00014795,2]
[360850649,1747074632775,-500.0,0.00014795,2]
[360850651,1747074632785,-177.546,0.00014798,2]
[360850653,1747074632795,-404.0,0.00014798,2]
[360850655,1747074632805,-169.12448499,0.00014798,2]
[360850657,1747074632814,-2966.08087728,0.00014798,2]
[360850659,1747074632824,-978.4648807,0.00014823,2]
[360850661,1747074632835,-173.267,0.00014823,2]
[360850663,1747074632845,-271.84811828,0.00014873,2]
[360850665,1747074632854,-502.63799747,0.00014873,2]
[360850667,1747074632864,-500.0,0.00014873,2]
[360850669,1747074632873,-500.0,0.00014873,2]
[360850671,1747074632883,-500.0,0.00014873,2]
[360850673,1747074632892,-500.0,0.00014873,2]
[360850675,1747074632902,-500.0,0.00014873,2]
[360850677,1747074632912,-501.50885988,0.00014873,2]
[360850679,1747074632922,-500.0,0.00014873,2]
[360850681,1747074632932,-500.0,0.00014873,2]
[360850683,1747074632942,-500.85089711,0.00014873,2]
[360850685,1747074632952,-154.16192095,0.00014873,2]
[360850687,1747074632961,-500.0,0.00014873,2]
[360850689,1747074632971,-500.0,0.00014873,2]
[360850690,1747074632980,-500.0,0.00014873,2]
[360850691,1747074632990,-207.4,0.00014889,2]
[360850692,1747074633006,-500.0,0.00014897,2]
[360850693,1747074633015,-616.24735823,0.00014897,2]
[360850694,1747074633025,-546.27082194,0.00014897,2]
[360850695,1747074633035,-500.0,0.00014897,2]
[360850696,1747074633161,-500.0,0.00014897,2]
[360850697,1747074633192,-519.44189049,0.00014897,2]
[360850698,1747074633203,-500.0,0.00014897,2]
[360850699,1747074633213,-500.0,0.00014897,2]
[360850700,1747074633223,-160.0,0.00014897,2]
[360850701,1747074633235,-161.444005,0.00014897,5]
[360850702,1747074633252,-232.282885,0.00014897,5]
[360850703,1747074633262,-55542.21400222,0.00014898,2]
[360850704,1747074633275,-1790.66170063,0.00014898,2]
[360851168,1747074638195,-24467.10115567,0.00014898,2]
[360851169,1747074638204,-26242.80578388,0.00014898,3]
[360851170,1747074638213,-212.17074216,0.00014898,3]
[360851171,1747074638223,-51237.9223183,0.00014898,2]
[360851174,1747074638305,-2367.44903649,0.00014898,2]
[360851175,1747074638316,-3202.42985963,0.00014898,2]
[360851176,1747074638328,-3072.4614552,0.00014898,2]
[360851177,1747074638339,-501.46583008,0.00014898,2]
[360851178,1747074638350,-4903.39999999,0.00014898,2]
[360851179,1747074638369,-7364.2283896,0.00014898,2]
[360851459,1747074643553,-3100.0,0.00014898,2]
[360851776,1747074646477,-1317.52103089,0.00014898,2]
[360851863,1747075536739,-2137.99443952,0.00013672,2]
[360851864,1747075536763,-403.9870581,0.0001381,2]
[360851865,1747075536786,-350.90513,0.00013815,2]
[360851866,1747075536809,-181.0,0.00013959,2]
[360851867,1747075536831,-216.79736,0.00014599,5]
[360851868,1747075536855,-216.79736,0.000146,2]
[360851869,1747075536877,-306.0,0.000146,2]
[360851870,1747075536900,-1200.0,0.00014794,2]